[Event "Titled Tuesday Blitz June 13 Late 2023"]
[White "Jaracz, Pawel"]
[Black "Castella Garcia, Fausto"]
[WhiteFideId "1102222"]
[BlackFideId "3501922"]
[WhiteElo "2454"]
[BlackElo "2245"]
[Result "0-1"]
[Round "1"]
[TimeControl "180+2"]
[Date "2023.06.13"]
[WhiteClock "0:00:00"]
[BlackClock "0:02:01"]
[Board "110"]

1. Nf3 {[%clk 0:02:55]}  c5 {[%clk 0:02:58]} 2. e4 {[%clk 0:02:47]}  d6 {[%clk 0:02:55]} 3. d4 {[%clk 0:02:40]}  cxd4 {[%clk 0:02:56]} 4. Nxd4 {[%clk 0:02:33]}  Nf6 {[%clk 0:02:53]} 5. Nc3 {[%clk 0:02:27]}  g6 {[%clk 0:02:53]} 6. Be3 {[%clk 0:02:20]}  Bg7 {[%clk 0:02:52]} 7. f3 {[%clk 0:02:13]}  O-O {[%clk 0:02:52]} 8. Qd2 {[%clk 0:02:10]}  Nc6 {[%clk 0:02:52]} 9. O-O-O {[%clk 0:02:03]}  Nxd4 {[%clk 0:02:39]} 10. Bxd4 {[%clk 0:01:55]}  Be6 {[%clk 0:02:40]} 11. h4 {[%clk 0:01:48]}  Qa5 {[%clk 0:02:31]} 12. a3 {[%clk 0:01:14]}  Rfc8 {[%clk 0:02:25]} 13. h5 {[%clk 0:01:03]}  Bc4 {[%clk 0:02:15]} 14. hxg6 {[%clk 0:00:55]}  fxg6 {[%clk 0:02:10]} 15. g4 {[%clk 0:00:49]}  Bxf1 {[%clk 0:02:08]} 16. Rdxf1 {[%clk 0:00:32]}  Rc4 {[%clk 0:02:06]} 17. g5 {[%clk 0:00:13]}  Nxe4 {[%clk 0:02:02]} 18. Nxe4 {[%clk 0:00:00]}  Qxd2+ {[%clk 0:02:01]} 0-1


[Site "https://www.chess.com"]

[Event "Titled Tuesday Blitz June 13 Late 2023"]
[White "Slavin, Alexey"]
[Black "Skvortsov, Andrei"]
[WhiteFideId "24104388"]
[BlackFideId "24108600"]
[WhiteElo "2264"]
[BlackElo "2259"]
[Result "1/2-1/2"]
[Round "1"]
[TimeControl "180+2"]
[Date "2023.06.13"]
[WhiteClock "0:00:08"]
[BlackClock "0:00:42"]
[Board "111"]

1. e4 {[%clk 0:02:58]}  d5 {[%clk 0:02:53]} 2. Nc3 {[%clk 0:02:58]}  Nf6 {[%clk 0:02:48]} 3. e5 {[%clk 0:02:57]}  Nfd7 {[%clk 0:02:46]} 4. d4 {[%clk 0:02:56]}  e6 {[%clk 0:02:46]} 5. f4 {[%clk 0:02:56]}  c5 {[%clk 0:02:46]} 6. Nf3 {[%clk 0:02:56]}  Nc6 {[%clk 0:02:47]} 7. Be3 {[%clk 0:02:56]}  a6 {[%clk 0:02:47]} 8. Qd2 {[%clk 0:02:56]}  Rb8 {[%clk 0:02:44]} 9. Be2 {[%clk 0:02:53]}  b5 {[%clk 0:02:40]} 10. a3 {[%clk 0:02:50]}  Be7 {[%clk 0:02:34]} 11. O-O {[%clk 0:02:50]}  Qc7 {[%clk 0:02:32]} 12. Kh1 {[%clk 0:02:49]}  cxd4 {[%clk 0:02:31]} 13. Nxd4 {[%clk 0:02:49]}  Nc5 {[%clk 0:02:31]} 14. Rae1 {[%clk 0:02:18]}  b4 {[%clk 0:02:29]} 15. axb4 {[%clk 0:02:17]}  Nxb4 {[%clk 0:02:22]} 16. Bg1 {[%clk 0:01:55]}  g6 {[%clk 0:02:16]} 17. Bd1 {[%clk 0:01:50]}  h5 {[%clk 0:02:14]} 18. Bf2 {[%clk 0:01:36]}  Nc6 {[%clk 0:02:14]} 19. b3 {[%clk 0:01:24]}  Bd7 {[%clk 0:02:11]} 20. Nf3 {[%clk 0:01:11]}  Nb4 {[%clk 0:02:06]} 21. Bh4 {[%clk 0:01:09]}  Bxh4 {[%clk 0:02:05]} 22. Nxh4 {[%clk 0:01:09]}  Bc6 {[%clk 0:01:56]} 23. Nf3 {[%clk 0:01:06]}  h4 {[%clk 0:01:52]} 24. h3 {[%clk 0:01:05]}  a5 {[%clk 0:01:43]} 25. Qf2 {[%clk 0:01:00]}  Ne4 {[%clk 0:01:41]} 26. Nxe4 {[%clk 0:00:59]}  dxe4 {[%clk 0:01:42]} 27. Ng5 {[%clk 0:00:48]}  Qb7 {[%clk 0:01:31]} 28. Kh2 {[%clk 0:00:38]}  Rd8 {[%clk 0:01:18]} 29. Re3 {[%clk 0:00:22]}  Kf8 {[%clk 0:01:17]} 30. Rfe1 {[%clk 0:00:18]}  Kg7 {[%clk 0:01:17]} 31. Nxe4 {[%clk 0:00:16]}  Bxe4 {[%clk 0:01:17]} 32. Rxe4 {[%clk 0:00:16]}  Rxd1 {[%clk 0:01:18]} 33. Rxb4 {[%clk 0:00:13]}  axb4 {[%clk 0:00:47]} 34. Rxd1 {[%clk 0:00:13]}  Rc8 {[%clk 0:00:42]} 35. Qxh4 {[%clk 0:00:09]}  Rxc2 {[%clk 0:00:41]} 36. Qf6+ {[%clk 0:00:09]}  Kh7 {[%clk 0:00:42]} 37. Qh4+ {[%clk 0:00:08]}  Kg7 {[%clk 0:00:42]} 38. Qf6+ {[%clk 0:00:08]}  Kh7 {[%clk 0:00:42]} 39. Qh4+ {[%clk 0:00:08]}  Kg7 {[%clk 0:00:42]} 1/2-1/2


[Site "https://www.chess.com"]

[Event "Titled Tuesday Blitz June 13 Late 2023"]
[White "FuenfgegenWilly"]
[Black "Ashraf, Artin"]
[BlackFideId "22514805"]
[WhiteElo "2368"]
[BlackElo "2224"]
[Result "1-0"]
[Round "1"]
[TimeControl "180+2"]
[Date "2023.06.13"]
[WhiteClock "0:00:07"]
[BlackClock "0:00:00"]
[Board "113"]

1. d4 {[%clk 0:02:56]}  d5 {[%clk 0:02:55]} 2. c4 {[%clk 0:02:56]}  e6 {[%clk 0:02:55]} 3. Nc3 {[%clk 0:02:56]}  Be7 {[%clk 0:02:51]} 4. Nf3 {[%clk 0:02:52]}  Nf6 {[%clk 0:02:46]} 5. Bf4 {[%clk 0:02:52]}  O-O {[%clk 0:02:42]} 6. e3 {[%clk 0:02:51]}  a6 {[%clk 0:02:41]} 7. Rc1 {[%clk 0:02:49]}  dxc4 {[%clk 0:02:40]} 8. Bxc4 {[%clk 0:02:48]}  b5 {[%clk 0:02:41]} 9. Bb3 {[%clk 0:02:47]}  Bb7 {[%clk 0:02:40]} 10. O-O {[%clk 0:02:47]}  Nbd7 {[%clk 0:02:40]} 11. Qe2 {[%clk 0:02:45]}  c5 {[%clk 0:02:40]} 12. Rfd1 {[%clk 0:02:39]}  Qb6 {[%clk 0:02:22]} 13. e4 {[%clk 0:02:30]}  cxd4 {[%clk 0:02:06]} 14. Nxd4 {[%clk 0:02:28]}  Bc5 {[%clk 0:01:56]} 15. Nf3 {[%clk 0:02:03]}  Rfd8 {[%clk 0:01:47]} 16. e5 {[%clk 0:01:57]}  Ng4 {[%clk 0:01:31]} 17. Bg3 {[%clk 0:01:49]}  Nf8 {[%clk 0:00:50]} 18. Ne4 {[%clk 0:01:38]}  Bxe4 {[%clk 0:00:47]} 19. Qxe4 {[%clk 0:01:38]}  Bxf2+ {[%clk 0:00:16]} 20. Kh1 {[%clk 0:01:16]}  Bxg3 {[%clk 0:00:09]} 21. Qxg4 {[%clk 0:01:16]}  Bf2 {[%clk 0:00:10]} 22. Rf1 {[%clk 0:01:08]}  Ng6 {[%clk 0:00:09]} 23. Ng5 {[%clk 0:01:06]}  Be3 {[%clk 0:00:07]} 24. Nxf7 {[%clk 0:00:59]}  Bxc1 {[%clk 0:00:07]} 25. Nxd8 {[%clk 0:00:59]}  Rxd8 {[%clk 0:00:05]} 26. Rxc1 {[%clk 0:00:52]}  Nxe5 {[%clk 0:00:03]} 27. Bxe6+ {[%clk 0:00:42]}  Kh8 {[%clk 0:00:02]} 28. Qf5 {[%clk 0:00:39]}  Qd4 {[%clk 0:00:01]} 29. Rf1 {[%clk 0:00:37]}  Ng6 {[%clk 0:00:01]} 30. Bf7 {[%clk 0:00:20]}  Nh4 {[%clk 0:00:02]} 31. Qg5 {[%clk 0:00:17]}  h6 {[%clk 0:00:02]} 32. Qg3 {[%clk 0:00:13]}  Qe4 {[%clk 0:00:01]} 33. Bh5 {[%clk 0:00:11]}  Nf5 {[%clk 0:00:01]} 34. Qf3 {[%clk 0:00:09]}  Qxf3 {[%clk 0:00:01]} 35. Bxf3 {[%clk 0:00:10]}  Ne3 {[%clk 0:00:01]} 36. Re1 {[%clk 0:00:09]}  Nc4 {[%clk 0:00:02]} 37. b3 {[%clk 0:00:09]}  Na3 {[%clk 0:00:02]} 38. h4 {[%clk 0:00:07]}  b4 {[%clk 0:00:02]} 39. Re6 {[%clk 0:00:06]}  Rd2 {[%clk 0:00:02]} 40. Rxa6 {[%clk 0:00:05]}  Rxa2 {[%clk 0:00:03]} 41. Bd5 {[%clk 0:00:06]}  g5 {[%clk 0:00:03]} 42. h5 {[%clk 0:00:05]}  Ra1+ {[%clk 0:00:01]} 43. Kh2 {[%clk 0:00:05]}  Nc2 {[%clk 0:00:02]} 44. Rxh6+ {[%clk 0:00:06]}  Kg7 {[%clk 0:00:03]} 45. Rb6 {[%clk 0:00:06]}  Kh7 {[%clk 0:00:04]} 46. Be4+ {[%clk 0:00:06]}  Kg7 {[%clk 0:00:00]} 47. Bxc2 {[%clk 0:00:07]} 1-0


[Site "https://www.chess.com"]

[Event "Titled Tuesday Blitz June 13 Late 2023"]
[White "Katz, Alexander"]
[Black "Bogaudinov, Rushan"]
[WhiteFideId "2039796"]
[BlackFideId "4129288"]
[WhiteElo "2389"]
[BlackElo "1967"]
[Result "1-0"]
[Round "1"]
[TimeControl "180+2"]
[Date "2023.06.13"]
[WhiteClock "0:01:15"]
[BlackClock "0:00:24"]
[Board "114"]

1. e4 {[%clk 0:02:36]}  e6 {[%clk 0:02:59]} 2. d4 {[%clk 0:02:36]}  d5 {[%clk 0:02:59]} 3. e5 {[%clk 0:02:36]}  c5 {[%clk 0:02:58]} 4. c3 {[%clk 0:02:35]}  Nc6 {[%clk 0:02:58]} 5. Nf3 {[%clk 0:02:34]}  Nge7 {[%clk 0:02:59]} 6. Bd3 {[%clk 0:02:27]}  Nf5 {[%clk 0:02:58]} 7. Bxf5 {[%clk 0:02:23]}  exf5 {[%clk 0:02:58]} 8. dxc5 {[%clk 0:02:24]}  Bxc5 {[%clk 0:02:55]} 9. O-O {[%clk 0:02:24]}  Be6 {[%clk 0:02:54]} 10. Nbd2 {[%clk 0:02:24]}  O-O {[%clk 0:02:54]} 11. Nb3 {[%clk 0:02:24]}  Be7 {[%clk 0:02:50]} 12. Nbd4 {[%clk 0:02:22]}  h6 {[%clk 0:02:32]} 13. Re1 {[%clk 0:02:15]}  Qb6 {[%clk 0:02:25]} 14. h4 {[%clk 0:02:12]}  Nxd4 {[%clk 0:02:23]} 15. Nxd4 {[%clk 0:02:02]}  Bxh4 {[%clk 0:02:15]} 16. Qh5 {[%clk 0:02:02]}  Qd8 {[%clk 0:01:49]} 17. g3 {[%clk 0:01:50]}  Bg5 {[%clk 0:01:39]} 18. f4 {[%clk 0:01:49]}  Be7 {[%clk 0:01:36]} 19. g4 {[%clk 0:01:46]}  Bh4 {[%clk 0:01:05]} 20. Rf1 {[%clk 0:01:33]}  fxg4 {[%clk 0:00:57]} 21. f5 {[%clk 0:01:31]}  Bd7 {[%clk 0:00:41]} 22. f6 {[%clk 0:01:27]}  g5 {[%clk 0:00:24]} 23. Qxh6 {[%clk 0:01:15]} 1-0


[Site "https://www.chess.com"]

[Event "Titled Tuesday Blitz June 13 Late 2023"]
[White "Papp, Petra"]
[Black "Bellahcene, Bilel"]
[WhiteFideId "739049"]
[BlackFideId "696358"]
[WhiteElo "2259"]
[BlackElo "2552"]
[Result "0-1"]
[Round "1"]
[TimeControl "180+2"]
[Date "2023.06.13"]
[WhiteClock "0:00:00"]
[BlackClock "0:00:09"]
[Board "115"]

1. d4 {[%clk 0:02:59]}  Nf6 {[%clk 0:02:49]} 2. c4 {[%clk 0:02:59]}  g6 {[%clk 0:02:45]} 3. Nc3 {[%clk 0:02:59]}  Bg7 {[%clk 0:02:45]} 4. e4 {[%clk 0:02:58]}  d6 {[%clk 0:02:45]} 5. h3 {[%clk 0:02:59]}  e5 {[%clk 0:02:43]} 6. d5 {[%clk 0:02:57]}  a5 {[%clk 0:02:43]} 7. g4 {[%clk 0:02:54]}  h5 {[%clk 0:02:42]} 8. g5 {[%clk 0:02:54]}  Nfd7 {[%clk 0:02:43]} 9. Be3 {[%clk 0:02:51]}  Nc5 {[%clk 0:02:34]} 10. Qd2 {[%clk 0:02:49]}  O-O {[%clk 0:02:33]} 11. O-O-O {[%clk 0:02:44]}  a4 {[%clk 0:02:31]} 12. Nge2 {[%clk 0:02:36]}  Nba6 {[%clk 0:02:13]} 13. Kb1 {[%clk 0:02:33]}  Bd7 {[%clk 0:02:10]} 14. Nc1 {[%clk 0:02:33]}  Qe7 {[%clk 0:01:50]} 15. Nd3 {[%clk 0:02:32]}  Nxd3 {[%clk 0:01:45]} 16. Bxd3 {[%clk 0:02:31]}  Nc5 {[%clk 0:01:37]} 17. Bc2 {[%clk 0:02:22]}  Rfb8 {[%clk 0:01:34]} 18. Bxc5 {[%clk 0:02:10]}  dxc5 {[%clk 0:01:34]} 19. d6 {[%clk 0:02:11]}  cxd6 {[%clk 0:01:35]} 20. Qxd6 {[%clk 0:02:11]}  Qxd6 {[%clk 0:01:35]} 21. Rxd6 {[%clk 0:02:11]}  Bc6 {[%clk 0:01:25]} 22. Rhd1 {[%clk 0:02:09]}  Bf8 {[%clk 0:01:25]} 23. R6d2 {[%clk 0:02:08]}  a3 {[%clk 0:01:22]} 24. b3 {[%clk 0:02:07]}  Be7 {[%clk 0:01:21]} 25. h4 {[%clk 0:02:07]}  Bd8 {[%clk 0:01:20]} 26. Nd5 {[%clk 0:02:05]}  Kg7 {[%clk 0:01:21]} 27. Bd3 {[%clk 0:01:58]}  Ba5 {[%clk 0:01:17]} 28. Rc2 {[%clk 0:01:59]}  Rd8 {[%clk 0:01:15]} 29. Bf1 {[%clk 0:01:58]}  Rd6 {[%clk 0:01:15]} 30. Rd3 {[%clk 0:01:50]}  Rad8 {[%clk 0:01:13]} 31. Rc1 {[%clk 0:01:50]}  Bd7 {[%clk 0:01:08]} 32. Rcd1 {[%clk 0:01:46]}  Bg4 {[%clk 0:01:08]} 33. f3 {[%clk 0:01:45]}  Be6 {[%clk 0:01:08]} 34. Kc2 {[%clk 0:01:35]}  Rb8 {[%clk 0:01:02]} 35. Re3 {[%clk 0:01:32]}  Bd7 {[%clk 0:00:54]} 36. Bd3 {[%clk 0:01:31]}  Bc6 {[%clk 0:00:52]} 37. Re2 {[%clk 0:01:30]}  Rf8 {[%clk 0:00:51]} 38. Rf1 {[%clk 0:01:26]}  Bd8 {[%clk 0:00:51]} 39. Kc3 {[%clk 0:01:24]}  f6 {[%clk 0:00:52]} 40. gxf6+ {[%clk 0:01:14]}  Bxf6 {[%clk 0:00:52]} 41. Rg2 {[%clk 0:01:08]}  Kh6 {[%clk 0:00:43]} 42. Rh1 {[%clk 0:01:06]}  Bd8 {[%clk 0:00:41]} 43. Rg3 {[%clk 0:01:00]}  Be8 {[%clk 0:00:33]} 44. Be2 {[%clk 0:00:59]}  Rf4 {[%clk 0:00:28]} 45. Rgh3 {[%clk 0:00:55]}  Rf8 {[%clk 0:00:27]} 46. Rg3 {[%clk 0:00:55]}  Rd7 {[%clk 0:00:27]} 47. Bd1 {[%clk 0:00:53]}  Bf7 {[%clk 0:00:27]} 48. Be2 {[%clk 0:00:53]}  Be6 {[%clk 0:00:28]} 49. Bd1 {[%clk 0:00:49]}  Rg7 {[%clk 0:00:28]} 50. Be2 {[%clk 0:00:41]}  Kh7 {[%clk 0:00:28]} 51. Bf1 {[%clk 0:00:40]}  Kg8 {[%clk 0:00:29]} 52. Bh3 {[%clk 0:00:40]}  Bxh3 {[%clk 0:00:29]} 53. Rhxh3 {[%clk 0:00:40]}  Kh7 {[%clk 0:00:29]} 54. Kd3 {[%clk 0:00:39]}  Rgf7 {[%clk 0:00:28]} 55. Ke2 {[%clk 0:00:39]}  Kh6 {[%clk 0:00:28]} 56. Rg2 {[%clk 0:00:39]}  g5 {[%clk 0:00:24]} 57. Ne3 {[%clk 0:00:17]}  gxh4 {[%clk 0:00:20]} 58. Nf5+ {[%clk 0:00:17]}  Rxf5 {[%clk 0:00:18]} 59. exf5 {[%clk 0:00:18]}  Bg5 {[%clk 0:00:15]} 60. f4 {[%clk 0:00:12]}  exf4 {[%clk 0:00:14]} 61. Rd3 {[%clk 0:00:11]}  Rxf5 {[%clk 0:00:13]} 62. Rd6+ {[%clk 0:00:11]}  Bf6 {[%clk 0:00:13]} 63. Kf3 {[%clk 0:00:11]}  h3 {[%clk 0:00:14]} 64. Rh2 {[%clk 0:00:10]}  Kg6 {[%clk 0:00:14]} 65. Rxh3 {[%clk 0:00:10]}  h4 {[%clk 0:00:15]} 66. Rh1 {[%clk 0:00:10]}  Kf7 {[%clk 0:00:15]} 67. Rd7+ {[%clk 0:00:07]}  Kg6 {[%clk 0:00:15]} 68. Rxb7 {[%clk 0:00:07]}  Rg5 {[%clk 0:00:14]} 69. Rb6 {[%clk 0:00:07]}  Kf5 {[%clk 0:00:13]} 70. Rd1 {[%clk 0:00:07]}  Rg3+ {[%clk 0:00:13]} 71. Kf2 {[%clk 0:00:06]}  Bd4+ {[%clk 0:00:13]} 72. Ke2 {[%clk 0:00:05]}  Rg2+ {[%clk 0:00:08]} 73. Kd3 {[%clk 0:00:02]}  Rxa2 {[%clk 0:00:08]} 74. Re1 {[%clk 0:00:01]}  f3 {[%clk 0:00:08]} 75. Ree6 {[%clk 0:00:00]}  f2 {[%clk 0:00:09]} 0-1


[Site "https://www.chess.com"]

[Event "Titled Tuesday Blitz June 13 Late 2023"]
[White "Martins, Bruno Andre Leite"]
[Black "Szente Varga, Fruzsina"]
[WhiteFideId "1942255"]
[BlackFideId "712264"]
[WhiteElo "2241"]
[BlackElo "1994"]
[Result "1-0"]
[Round "1"]
[TimeControl "180+2"]
[Date "2023.06.13"]
[WhiteClock "0:00:48"]
[BlackClock "0:00:00"]
[Board "116"]

1. Nf3 {[%clk 0:02:57]}  d5 {[%clk 0:02:58]} 2. g3 {[%clk 0:02:58]}  Nf6 {[%clk 0:02:57]} 3. Bg2 {[%clk 0:02:59]}  g6 {[%clk 0:02:57]} 4. O-O {[%clk 0:03:00]}  Bg7 {[%clk 0:02:58]} 5. d4 {[%clk 0:02:58]}  O-O {[%clk 0:02:58]} 6. c4 {[%clk 0:02:58]}  c6 {[%clk 0:02:58]} 7. Nc3 {[%clk 0:02:56]}  dxc4 {[%clk 0:02:58]} 8. Ne5 {[%clk 0:02:57]}  Be6 {[%clk 0:02:58]} 9. e4 {[%clk 0:02:56]}  Nbd7 {[%clk 0:02:54]} 10. Nf3 {[%clk 0:02:55]}  Nb6 {[%clk 0:02:52]} 11. h3 {[%clk 0:02:53]}  Qd7 {[%clk 0:02:49]} 12. Kh2 {[%clk 0:02:52]}  Rfd8 {[%clk 0:02:40]} 13. Qe2 {[%clk 0:02:51]}  Qc7 {[%clk 0:02:22]} 14. Bf4 {[%clk 0:02:47]}  Qc8 {[%clk 0:02:21]} 15. a4 {[%clk 0:02:43]}  a5 {[%clk 0:02:19]} 16. Be3 {[%clk 0:02:37]}  Qc7 {[%clk 0:02:13]} 17. Ng5 {[%clk 0:02:33]}  Bd7 {[%clk 0:01:55]} 18. f4 {[%clk 0:02:33]}  h5 {[%clk 0:01:33]} 19. Nf3 {[%clk 0:02:32]}  Ne8 {[%clk 0:01:04]} 20. Ne5 {[%clk 0:02:29]}  Be6 {[%clk 0:00:59]} 21. f5 {[%clk 0:02:25]}  gxf5 {[%clk 0:00:57]} 22. exf5 {[%clk 0:02:26]}  Bd5 {[%clk 0:00:55]} 23. Qxh5 {[%clk 0:02:19]}  Bxe5 {[%clk 0:00:42]} 24. dxe5 {[%clk 0:02:19]}  Qxe5 {[%clk 0:00:42]} 25. Bxb6 {[%clk 0:02:15]}  Bxg2 {[%clk 0:00:39]} 26. Kxg2 {[%clk 0:02:10]}  Rd2+ {[%clk 0:00:38]} 27. Rf2 {[%clk 0:02:11]}  Ng7 {[%clk 0:00:27]} 28. Qg4 {[%clk 0:02:07]}  Rxf2+ {[%clk 0:00:22]} 29. Bxf2 {[%clk 0:02:02]}  Rd8 {[%clk 0:00:19]} 30. Re1 {[%clk 0:01:37]}  Qxf5 {[%clk 0:00:19]} 31. Qxc4 {[%clk 0:01:35]}  Rd2 {[%clk 0:00:18]} 32. Re2 {[%clk 0:01:35]}  Rxe2 {[%clk 0:00:16]} 33. Qxe2 {[%clk 0:01:36]}  Ne6 {[%clk 0:00:14]} 34. Qg4+ {[%clk 0:01:17]}  Qxg4 {[%clk 0:00:13]} 35. hxg4 {[%clk 0:01:18]}  c5 {[%clk 0:00:10]} 36. Ne4 {[%clk 0:01:11]}  b6 {[%clk 0:00:10]} 37. Nd2 {[%clk 0:01:10]}  Nc7 {[%clk 0:00:09]} 38. Nc4 {[%clk 0:01:09]}  Nd5 {[%clk 0:00:09]} 39. Kf3 {[%clk 0:01:09]}  Kg7 {[%clk 0:00:09]} 40. Ke4 {[%clk 0:01:08]}  e6 {[%clk 0:00:10]} 41. Ke5 {[%clk 0:01:07]}  Kg6 {[%clk 0:00:07]} 42. Be3 {[%clk 0:01:06]}  Kg7 {[%clk 0:00:00]} 43. Bg5 {[%clk 0:00:48]} 1-0


[Site "https://www.chess.com"]

[Event "Titled Tuesday Blitz June 13 Late 2023"]
[White "Arabidze, Meri"]
[Black "Garrido, Denis"]
[WhiteFideId "13604040"]
[BlackFideId "601217"]
[WhiteElo "2405"]
[BlackElo "2360"]
[Result "1-0"]
[Round "1"]
[TimeControl "180+2"]
[Date "2023.06.13"]
[WhiteClock "0:01:58"]
[BlackClock "0:02:20"]
[Board "120"]

1. d4 {[%clk 0:03:00]}  Nf6 {[%clk 0:02:58]} 2. c4 {[%clk 0:03:00]}  e6 {[%clk 0:02:58]} 3. Nf3 {[%clk 0:02:54]}  d5 {[%clk 0:02:58]} 4. Nc3 {[%clk 0:02:52]}  dxc4 {[%clk 0:02:57]} 5. e3 {[%clk 0:02:49]}  a6 {[%clk 0:02:57]} 6. a4 {[%clk 0:02:48]}  Bb4 {[%clk 0:02:56]} 7. Bxc4 {[%clk 0:02:48]}  b6 {[%clk 0:02:56]} 8. O-O {[%clk 0:02:48]}  Bb7 {[%clk 0:02:56]} 9. Qe2 {[%clk 0:02:48]}  O-O {[%clk 0:02:55]} 10. Bd2 {[%clk 0:02:48]}  c5 {[%clk 0:02:53]} 11. Rfd1 {[%clk 0:02:43]}  Qe7 {[%clk 0:02:53]} 12. Rac1 {[%clk 0:02:38]}  Nbd7 {[%clk 0:02:52]} 13. h3 {[%clk 0:02:35]}  Rac8 {[%clk 0:02:51]} 14. Bxa6 {[%clk 0:02:33]}  Bxa6 {[%clk 0:02:49]} 15. Qxa6 {[%clk 0:02:34]}  c4 {[%clk 0:02:49]} 16. Qb5 {[%clk 0:02:31]}  Ba5 {[%clk 0:02:43]} 17. Nb1 {[%clk 0:02:22]}  Bxd2 {[%clk 0:02:40]} 18. Nbxd2 {[%clk 0:02:23]}  c3 {[%clk 0:02:40]} 19. Rxc3 {[%clk 0:02:17]}  Rxc3 {[%clk 0:02:40]} 20. bxc3 {[%clk 0:02:18]}  Nd5 {[%clk 0:02:41]} 21. Qb3 {[%clk 0:02:18]}  Rc8 {[%clk 0:02:40]} 22. c4 {[%clk 0:02:18]}  N5f6 {[%clk 0:02:40]} 23. Rb1 {[%clk 0:02:15]}  Qd6 {[%clk 0:02:38]} 24. Qb5 {[%clk 0:02:12]}  h6 {[%clk 0:02:34]} 25. a5 {[%clk 0:02:07]}  bxa5 {[%clk 0:02:33]} 26. Qxa5 {[%clk 0:02:07]}  Qc6 {[%clk 0:02:33]} 27. Qb5 {[%clk 0:01:59]}  Qc7 {[%clk 0:02:20]} 28. Qb7 {[%clk 0:01:58]} 1-0


[Site "https://www.chess.com"]

[Event "Titled Tuesday Blitz June 13 Late 2023"]
[White "Goryachkina, Aleksandra"]
[Black "Figorito, Nick"]
[WhiteFideId "4147103"]
[BlackFideId "30923689"]
[WhiteElo "2471"]
[BlackElo "2352"]
[Result "1/2-1/2"]
[Round "1"]
[TimeControl "180+2"]
[Date "2023.06.13"]
[WhiteClock "0:00:14"]
[BlackClock "0:00:25"]
[Board "122"]

1. e4 {[%clk 0:02:59]}  e6 {[%clk 0:02:59]} 2. d4 {[%clk 0:02:58]}  d5 {[%clk 0:03:00]} 3. Nc3 {[%clk 0:02:58]}  Bb4 {[%clk 0:03:00]} 4. Ne2 {[%clk 0:02:56]}  Nf6 {[%clk 0:02:59]} 5. e5 {[%clk 0:02:39]}  Nfd7 {[%clk 0:02:59]} 6. a3 {[%clk 0:02:36]}  Be7 {[%clk 0:02:59]} 7. f4 {[%clk 0:02:32]}  c5 {[%clk 0:02:58]} 8. Be3 {[%clk 0:02:32]}  Nc6 {[%clk 0:02:58]} 9. Qd2 {[%clk 0:02:32]}  a6 {[%clk 0:02:52]} 10. dxc5 {[%clk 0:02:06]}  Nxc5 {[%clk 0:02:42]} 11. O-O-O {[%clk 0:02:05]}  b5 {[%clk 0:02:29]} 12. Nd4 {[%clk 0:02:05]}  Nxd4 {[%clk 0:02:25]} 13. Bxd4 {[%clk 0:02:03]}  Bb7 {[%clk 0:02:12]} 14. Qf2 {[%clk 0:02:00]}  Qc8 {[%clk 0:01:51]} 15. h4 {[%clk 0:01:51]}  Ne4 {[%clk 0:01:32]} 16. Nxe4 {[%clk 0:01:51]}  dxe4 {[%clk 0:01:32]} 17. h5 {[%clk 0:01:47]}  h6 {[%clk 0:01:32]} 18. Rh3 {[%clk 0:01:45]}  Bd5 {[%clk 0:01:17]} 19. g4 {[%clk 0:01:43]}  Qb7 {[%clk 0:01:17]} 20. Bc5 {[%clk 0:01:11]}  O-O-O {[%clk 0:01:02]} 21. Bxe7 {[%clk 0:01:01]}  Qxe7 {[%clk 0:01:03]} 22. Qb6 {[%clk 0:01:01]}  Qb7 {[%clk 0:01:00]} 23. Rc3+ {[%clk 0:00:47]}  Kb8 {[%clk 0:01:00]} 24. Qxb7+ {[%clk 0:00:39]}  Kxb7 {[%clk 0:01:01]} 25. Bg2 {[%clk 0:00:37]}  f5 {[%clk 0:00:48]} 26. exf6 {[%clk 0:00:27]}  gxf6 {[%clk 0:00:47]} 27. f5 {[%clk 0:00:17]}  exf5 {[%clk 0:00:32]} 28. gxf5 {[%clk 0:00:18]}  Bc6 {[%clk 0:00:31]} 29. Re3 {[%clk 0:00:15]}  Rxd1+ {[%clk 0:00:30]} 30. Kxd1 {[%clk 0:00:15]}  Re8 {[%clk 0:00:26]} 31. Ke2 {[%clk 0:00:15]}  Re5 {[%clk 0:00:27]} 32. Bh3 {[%clk 0:00:14]}  Bd7 {[%clk 0:00:26]} 33. Kd2 {[%clk 0:00:12]}  Bxf5 {[%clk 0:00:25]} 34. Bxf5 {[%clk 0:00:12]}  Rxf5 {[%clk 0:00:26]} 35. Rxe4 {[%clk 0:00:12]}  Rxh5 {[%clk 0:00:27]} 36. Re7+ {[%clk 0:00:13]}  Kb8 {[%clk 0:00:25]} 37. Re6 {[%clk 0:00:13]}  Rh2+ {[%clk 0:00:24]} 38. Kc3 {[%clk 0:00:13]}  Kb7 {[%clk 0:00:23]} 39. Rxf6 {[%clk 0:00:12]}  h5 {[%clk 0:00:23]} 40. Rf7+ {[%clk 0:00:12]}  Kb6 {[%clk 0:00:24]} 41. Rf6+ {[%clk 0:00:13]}  Kb7 {[%clk 0:00:24]} 42. Rf7+ {[%clk 0:00:13]}  Kb6 {[%clk 0:00:25]} 43. Rf6+ {[%clk 0:00:14]}  Kb7 {[%clk 0:00:25]} 1/2-1/2


[Site "https://www.chess.com"]